Cogmind - Beta 12 @@@ ROGUE MODE // 2023.09.13 @ 13:30:24 Player: DuckBoy Result: Destroyed by G-73 Enforcer with Heavy Laser Performance ------------- Evolutions (8) 4000 Regions Visited (15) 3000 Robots Destroyed (101) 505 Value Destroyed (3367) 3367 Prototype IDs (24) 480 Alien Tech Used (0) 0 Bonus (2406) 2406 TOTAL SCORE: 13758 Bonus ------- Follower Combat Kills 495 Entered Garrisons 400 Used RIF Installer 1000 Entered DSFs 500 Aligned with FarCom 300 Friendly Fire -289 Cogmind --------- Core Integrity 0/1450 Matter 31/300 Energy 70/100 System Corruption 13% Temperature Cool (87) Movement Core (50) Location -2/Research Parts ------- > --- POWER (2) -------- (None) > --- PROPULSION (4) --- (None) > --- UTILITY (15) ----- Advanced Terrain Scan Processor > --- WEAPON (2) ------- (None) > --- INVENTORY (5) ---- Centrium Leg Improved EM Pulse Cannon Improved Remote Datajack Improved Remote Datajack Peak State ------------ > --- POWER ------------ Backup Power III Backup Power III > --- PROPULSION ------- Gravmag Array Antigrav Array > --- UTILITY ---------- Advanced Cooling System Large Storage Unit Advanced Terrain Scanner Advanced Terrain Scan Processor Hacking Suite Improved Hacking Suite Authchip [R/Combat] Authchip [R/Combat] Authchip [Device] Relay Coupler [NC] Relay Coupler [NC] > --- WEAPON ----------- Chainsword > --- INVENTORY -------- Improved Antigrav System Improved Antigrav System Improved Linear Gravjet Improved Linear Gravjet Relay Coupler [NC] Improved EM Pulse Cannon Disruptor Cannon Assault Cannon Smartbomb Launcher Improved Remote Datajack Improved Remote Datajack Improved Remote Datajack Improved Remote Datajack [Rating: 81] Favorites ----------- Power Backup Power I Engine Backup Power I Power Core Nuclear Core Propulsion Aluminum Leg Leg Aluminum Leg Wheel Wheel Hover Unit Gravmag Array Flight Unit Nuclear Pulse Array Utility Large Storage Unit Device Improved Heat Sink Storage Large Storage Unit Processor Improved Terrain Scan Processor Hackware Hacking Suite Protection Improved Light Armor Plating Weapon Chainsword Energy Gun Particle Gun Energy Cannon Plasma Cannon Ballistic Gun Assault Rifle Ballistic Cannon Assault Cannon Launcher Grenade Launcher Special Weapon Remote Datajack Slashing Weapon Chainsword Piercing Weapon Spear Build | -11 -10 -10 -10 -9 -8 -8 -8 -8 -8 -6 -5 -4 -3 -3 -2 ------- Run | Jun Mat Min Exi Min Mat Gar Sto Gar Rec Fac Fac Fac Res DSF Res Slots Evolved 16 | . . . . . 4 . . . . 4 2 2 2 . 2 Power 1 | . . . . . . . . . . . . 1 . . . Propulsion 2 | . . . . . . . . . . . . 1 1 . . Utility 13 | . . . . . 4 . . . . 4 2 . 1 . 2 Weapon . | . . . . . . . . . . . . . . . . Parts Attached 193 | 8 1 1 . 2 24 14 6 19 7 72 1 11 4 2 21 Power 12 | 1 . 1 . . 1 . 2 3 1 1 . . . . 2 Engine 11 | 1 . 1 . . . . 2 3 1 1 . . . . 2 Core 1 | . . . . . 1 . . . . . . . . . . Reactor . | . . . . . . . . . . . . . . . . Propulsion 41 | 4 . . . . 6 6 1 5 . 7 . 3 2 . 7 Treads . | . . . . . . . . . . . . . . . . Leg 12 | 2 . . . . 1 2 1 5 . 1 . . . . . Wheel 5 | 2 . . . . 3 . . . . . . . . . . Hover 15 | . . . . . 2 1 . . . 6 . 3 2 . 1 Flight 9 | . . . . . . 3 . . . . . . . . 6 Utility 58 | 1 . . . . 6 3 . 3 5 27 . 4 2 1 6 Device 25 | . . . . . 3 . . 1 . 13 . 2 1 1 4 Storage 4 | 1 . . . . . 1 . . . 2 . . . . . Processor 5 | . . . . . 1 2 . . . 1 . 1 . . . Hackware 21 | . . . . . 2 . . 2 5 8 . 1 1 . 2 Protection 3 | . . . . . . . . . . 3 . . . . . Artifact . | . . . . . . . . . . . . . . . . Weapon 82 | 2 1 . . 2 11 5 3 8 1 37 1 4 . 1 6 Energy Gun 3 | . . . . . 2 . . . . 1 . . . . . Energy Cannon 15 | . . . . . 5 2 2 4 . 1 . . . . 1 Ballistic Gun 6 | 2 . . . 2 1 1 . . . . . . . . . Ballistic Cannon 7 | . . . . . . . . 1 . 6 . . . . . Launcher 2 | . 1 . . . . . . . . . . . . 1 . Special Weapon 19 | . . . . . . . . 2 1 10 . 2 . . 4 Impact Weapon . | . . . . . . . . . . . . . . . . Slashing Weapon 29 | . . . . . 3 2 1 1 . 18 1 2 . . 1 Piercing Weapon 1 | . . . . . . . . . . 1 . . . . . Special Melee Weapon . | . . . . . . . . . . . . . . . . Unidentified Prototypes . | . . . . . . . . . . . . . . . . Corrupted Parts 6 | . . . . . . . . . 2 4 . . . . . System Corruption 16 | . . . . . . . . . 5 11 . . . . . Parts Lost 57 | . . 1 . 1 5 4 3 6 . 11 . . . 4 22 Power 8 | . . . . . . . 1 1 . 2 . . . . 4 Propulsion 20 | . . . . . 3 3 . 3 . 3 . . . . 8 Utility 23 | . . . . . 2 1 1 2 . 6 . . . 3 8 Weapon 6 | . . 1 . 1 . . 1 . . . . . . 1 2 Highest Loss Streak 10 | . . 1 . 1 2 3 3 2 . 3 . . . 4 10 To Critical Strikes . | . . . . . . . . . . . . . . . . Average Slot Usage (%) 77 | . 85 80 71 79 83 82 87 83 96 73 52 71 71 59 41 Engine 6 | . 14 14 14 14 6 8 8 8 9 1 . 9 9 9 2 Leg 8 | . 28 28 28 28 5 4 18 16 18 2 . . . . . Hover 4 | . . . . . 8 . . . . 6 5 9 9 9 6 Device 5 | . . . . . 16 12 . 2 . 4 . 7 9 5 2 Storage 7 | . 14 14 14 14 9 9 9 9 9 6 5 5 4 4 3 Processor 10 | . . . . . 6 17 27 18 18 10 5 5 4 4 4 Hackware 19 | . . . . . 8 9 8 13 24 32 35 27 28 21 14 Energy Cannon 2 | . . . . . 6 6 15 7 . . . . . . . Ballistic Gun 1 | . 17 9 . 16 3 . . . . . . . . . . Launcher 1 | . 10 14 14 5 . . . . . . . . . 2 . Special Weapon 1 | . . . . . . . . 1 9 1 . 4 . . 2 Slashing Weapon 3 | . . . . . 2 4 . 5 9 3 . 1 4 1 2 Naked Turns . | . . . . . . . . . . . . . . . . Heaviest Build 45 | 11 13 15 13 14 24 22 41 44 34 34 23 35 30 36 45 Greatest Support 46 | 32 20 20 20 20 20 20 27 36 33 33 20 32 46 46 46 Greatest Overweight (x) 7 | . . . . . 7 3 2 2 1 2 1 1 1 . 6 Average Overweight (x) . | . . . . . . . . . . . . . . . . Largest Inventory Capacity 15 | 8 8 8 8 8 8 15 15 15 15 15 15 15 15 15 15 Average Capacity 12 | 6 8 8 8 8 8 8 15 15 15 15 15 15 15 15 13 Most Carried 15 | 3 8 8 8 8 8 14 14 15 15 15 15 15 15 15 15 Average Carried 11 | 1 6 8 7 6 7 7 12 14 13 12 14 14 14 13 12 Final Capacity 15 | 8 8 8 8 8 8 15 15 15 15 15 15 15 15 15 5 Final Carried 15 | 3 8 8 8 6 8 14 13 15 12 15 14 15 14 13 4 Class Distribution -------------------- 27% | Mutant 19% | Commander-Mutant 12% | Hacker-Mutant 10% | Bothacker-Mutant 9% | Hacker-Scout 8% | Scavenger-Mutant 4% | Bothacker-Assassin Dominant Class ---------------- Mutant | -10/Materials Mutant | -10/Mines Mutant | -10/Exiles Mutant | -9/Mines Scavenger-Mutant | -8/Materials Mutant | -8/Garrison Mutant | -8/Storage Bothacker-Mutant | -8/Garrison Commander-Mutant | -8/Recycling Commander-Mutant | -6/Factory Hacker-Mutant | -5/Factory Hacker-Scout | -4/Factory Hacker-Scout | -3/Research Hacker-Scout | -3/DSF Mutant | -2/Research Resources | -11 -10 -10 -10 -9 -8 -8 -8 -8 -8 -6 -5 -4 -3 -3 -2 ----------- Run | Jun Mat Min Exi Min Mat Gar Sto Gar Rec Fac Fac Fac Res DSF Res Matter Collected 2918 | 216 368 61 . 88 376 115 60 317 329 846 . . . . 142 Remotely . | . . . . . . . . . . . . . . . . Salvage Created 2947 | . 245 127 . 146 646 354 111 394 . 731 . . . 70 123 Parts 188 | . 36 14 . 13 36 11 5 19 . 44 . . . 4 6 Haulers Intercepted . | . . . . . . . . . . . . . . . . Recyclers Shooed 1 | . . . . . . . . . 1 . . . . . . Parts Field Recycled . | . . . . . . . . . . . . . . . . Retrieved Matter . | . . . . . . . . . . . . . . . . Parts Self-Destructed . | . . . . . . . . . . . . . . . . Prevented . | . . . . . . . . . . . . . . . . Kills | -11 -10 -10 -10 -9 -8 -8 -8 -8 -8 -6 -5 -4 -3 -3 -2 ------- Run | Jun Mat Min Exi Min Mat Gar Sto Gar Rec Fac Fac Fac Res DSF Res Combat Hostiles Destroyed 81 | . 14 7 . 8 10 9 2 14 . 13 . . . 4 . Melee 23 | . . . . . 1 1 . 10 . 11 . . . . . Guns 15 | . 1 . . 4 4 6 . . . . . . . . . Cannons 12 | . . . . . 3 2 2 3 . 2 . . . . . AOE 28 | . 13 7 . 4 . . . . . . . . . 4 . Classes Destroyed 12 | . 5 1 . . 3 . . 1 . 1 . . . 1 . Worker 4 | . . . . . 2 . . . . 1 . . . . 1 Builder 1 | . . . . . 1 . . . . . . . . . . Tunneler 1 | . . 1 . . . . . . . . . . . . . Recycler 4 | . 1 . . 1 1 . . . . . . . . . 1 Operator 4 | . 2 . . . 2 . . . . . . . . . . Watcher 4 | . 3 . . . . . . . . 1 . . . . . Swarmer 32 | . 9 3 . 8 . 3 . 9 . . . . . . . Cutter 4 | . . . . . . . . . . . . . . 4 . Grunt 30 | . 5 4 . . 7 6 . 4 . 4 . . . . . Sentry 7 | . . . . . 3 . 2 . . 2 . . . . . Specialist 1 | . . . . . . . . 1 . . . . . . . Programmer 9 | . . . . . . . . . . 7 . . . 2 . Best Kill Streak 9 | . 9 3 . 4 3 4 2 8 . 3 . . . 4 1 Combat Bots Only 8 | . 6 3 . 4 3 4 2 8 . 3 . . . 4 . Max Kills in Single Turn 3 | . 3 3 . 3 1 1 1 1 . 1 . . . 3 1 Gunslinging . | . . . . . . . . . . . . . . . . Exploded 3 | . 3 3 . 3 . . . . . . . . . 2 . Melee 1 | . . . . . 1 1 . 1 . 1 . . . . . Uniques/NPCs Destroyed . | . . . . . . . . . . . . . . . . Combat | -11 -10 -10 -10 -9 -8 -8 -8 -8 -8 -6 -5 -4 -3 -3 -2 -------- Run | Jun Mat Min Exi Min Mat Gar Sto Gar Rec Fac Fac Fac Res DSF Res Damage Taken 7631 | . 244 116 . 137 600 309 422 814 33 1709 21 . . 369 2857 Core 2805 | . 73 21 . 49 82 24 99 235 18 677 19 . . 42 1466 Absorbed by Shields 89 | . . . . . . . . . . . . . . . 89 Regen/Repaired (Parts) 70 | . . . . . . . . . . 70 . . . . . Core Remaining (%) 67 | 100 . . . 42 . . . . 16 20 98 100 . 96 . Volleys Fired 230 | . 42 10 . 15 39 16 4 19 36 32 . 3 . 4 10 Largest 2 | . 2 1 . 2 2 2 2 2 1 1 . 1 . 1 1 Hottest 180 | . 50 30 . 40 160 160 160 180 5 44 . 7 . 46 94 Shots Fired 351 | . 48 10 . 26 96 46 8 32 36 32 . 3 . 4 10 Gun 125 | . 23 . . 22 58 22 . . . . . . . . . Cannon 113 | . . . . . 38 24 8 30 . 12 . . . . 1 Launcher 43 | . 25 10 . 4 . . . . . . . . . 4 . Special 70 | . . . . . . . . 2 36 20 . 3 . . 9 Kinetic 130 | . 23 . . 22 40 22 . 11 . 12 . . . . . Thermal 107 | . . . . . 56 24 8 19 . . . . . . . Explosive 43 | . 25 10 . 4 . . . . . . . . . 4 . Electromagnetic 1 | . . . . . . . . . . . . . . . 1 Robot Hit Streak 41 | . 6 3 . 10 13 11 8 9 40 41 . 5 . 8 10 Robot Miss Streak 6 | . 2 . . 2 4 1 . 6 . 2 . . . . 1 Penetration Max . | . . . . . . . . . . . . . . . . Secondary Targets 1 | . . . . 1 . . . . . . . . . . . Max Gunslinging Chain 1 | . . . . 1 . . . . . . . . . . . Autonomous 43 | . . . . . 20 23 . . . . . . . . . Shots Hit Robots 321 | . 19 2 . 16 75 38 7 40 37 72 . 3 . 3 9 Core Hits 141 | . 32 13 . 10 21 12 2 13 . 24 . . . 10 4 Critical Kills 2 | . . . . . 1 . . 1 . . . . . . . Critical Parts Destroyed 1 | . . . . . . 1 . . . . . . . . . Critical Strikes 12 | . . . . . 1 3 . 3 . 5 . . . . . Meltdown 2 | . . . . . 1 . . 1 . . . . . . . Destroy 1 | . . . . . . 1 . . . . . . . . . Sever 8 | . . . . . . 2 . 2 . 4 . . . . . Impale 1 | . . . . . . . . . . 1 . . . . . Melee Attacks 206 | . . . . . 16 20 3 39 1 111 2 5 1 . 8 Impact . | . . . . . . . . . . . . . . . . Slashing 189 | . . . . . 16 20 3 39 1 94 2 5 1 . 8 Piercing 17 | . . . . . . . . . . 17 . . . . . Sneak Attacks 9 | . . . . . 1 . . 2 1 2 . . . . 3 Combat Hostiles 2 | . . . . . . . . 2 . . . . . . . Follow-up Attacks 2 | . . . . . . . . . . 2 . . . . . Damage Inflicted 9879 | . 1378 420 . 348 1796 1090 179 1484 83 2147 4 . . 691 259 Guns 1631 | . 149 . . 195 814 473 . . . . . . . . . Cannons 1662 | . . . . . 689 385 179 165 . 235 . . . . 9 Explosions 2493 | . 1229 420 . 153 . . . . . . . . . 691 . Melee 4073 | . . . . . 293 232 . 1319 83 1912 . . . . 234 Ramming 20 | . . . . . . . . . . . 4 . . . 16 Kinetic 1688 | . 149 . . 195 636 473 . . . 235 . . . . . Thermal 1767 | . 171 . . . 867 385 179 165 . . . . . . . Explosive 2322 | . 1058 420 . 153 . . . . . . . . . 691 . Electromagnetic 9 | . . . . . . . . . . . . . . . 9 Impact . | . . . . . . . . . . . . . . . . Slashing 3703 | . . . . . 293 232 . 1319 83 1542 . . . . 234 Piercing 370 | . . . . . . . . . . 370 . . . . . Highest Corruption 14 | . . . . . . . 9 9 14 7 . . . 4 13 Average Corruption 7 | . . . . . . . 9 9 9 1 . . . 4 4 Corruption Purged 16 | . . . . . . . . . . 16 . . . . . Corruption Blocked . | . . . . . . . . . . . . . . . . Effects 95 | . . . . . . . 1 39 44 6 . . . . 5 Message Errors 22 | . . . . . . . . 6 13 2 . . . . 1 Matter Fused 29 | . . . . . . . . 14 14 . . . . . 1 Heat Flow Errors 12 | . . . . . . . 1 5 2 2 . . . . 2 Energy Discharges 11 | . . . . . . . . 5 6 . . . . . . Parts Rejected 1 | . . . . . . . . . . . . . . . 1 Data Loss (minor) 10 | . . . . . . . . 4 4 2 . . . . . Data Loss (major) 6 | . . . . . . . . 2 4 . . . . . . Misfires 2 | . . . . . . . . 2 . . . . . . . Alerts 2 | . . . . . . . . 1 1 . . . . . . Overload Shots . | . . . . . . . . . . . . . . . . Overflow Damage 371 | . 23 32 . . 100 13 . 103 . 44 . . . . 56 Projectiles 44 | . . . . . 23 5 . 5 . 11 . . . . . Explosions 55 | . 23 32 . . . . . . . . . . . . . Melee 272 | . . . . . 77 8 . 98 . 33 . . . . 56 Knockbacks 4 | . . . . . . . . . . 4 . . . . . Impact . | . . . . . . . . . . . . . . . . Kinetic 4 | . . . . . . . . . . 4 . . . . . Secondary . | . . . . . . . . . . . . . . . . Self-Inflicted Damage 192 | . 30 43 . 23 . . . . . . 2 . . 88 6 Shots 8 | . 3 2 . 1 . . . . . . . . . 2 . Rammed 8 | . . . . . . . . . . . 1 . . . 7 Targets Rammed 8 | . . . . . . . . . . . 1 . . . 7 Kicked . | . . . . . . . . . . . . . . . . Crushed . | . . . . . . . . . . . . . . . . Highest Temperature 298 | . 2 5 . . 30 62 290 298 244 232 . . . . 139 Average Temperature 96 | . 1 3 . . 14 35 139 109 113 113 . . . . 87 Received Heat Transfer 1479 | . 54 27 . . 396 117 36 243 9 381 9 . . . 207 Siege Activations . | . . . . . . . . . . . . . . . . Robots Corrupted . | . . . . . . . . . . . . . . . . Combat Hostiles . | . . . . . . . . . . . . . . . . Parts Fried . | . . . . . . . . . . . . . . . . Impact Corruptions . | . . . . . . . . . . . . . . . . Robots Melted 3 | . . . . . 2 . . 1 . . . . . . . Combat Hostiles 3 | . . . . . 2 . . 1 . . . . . . . Parts Melted 10 | . 1 . . . 4 1 3 1 . . . . . . . Heat Transferred 3331 | . 100 . . . 1831 750 350 300 . . . . . . . Parts Sabotaged . | . . . . . . . . . . . . . . . . Parts Stolen . | . . . . . . . . . . . . . . . . Parts Stripped . | . . . . . . . . . . . . . . . . Power Chain Reactions . | . . . . . . . . . . . . . . . . Missiles Intercepted . | . . . . . . . . . . . . . . . . Alert | -11 -10 -10 -10 -9 -8 -8 -8 -8 -8 -6 -5 -4 -3 -3 -2 ------- Run | Jun Mat Min Exi Min Mat Gar Sto Gar Rec Fac Fac Fac Res DSF Res Peak Influence 480 | . 398 369 . 266 218 480 317 332 234 189 74 84 81 170 215 Initial 234 | . . 135 . . 103 47 234 9 149 . 70 35 51 60 81 Average 118 | . 214 242 . 212 85 241 172 175 99 82 70 28 70 105 76 Maximum Alert Level 2 | . 1 1 . 1 1 2 1 1 1 . . . . . 1 Low Security (%) 78 | 100 32 33 . 46 89 41 53 47 71 100 100 100 100 100 96 Level 1 19 | . 67 66 . 53 10 39 46 52 28 . . . . . 3 Level 2 1 | . . . . . . 18 . . . . . . . . . Level 3 . | . . . . . . . . . . . . . . . . Level 4 . | . . . . . . . . . . . . . . . . Level 5 . | . . . . . . . . . . . . . . . . High Security . | . . . . . . . . . . . . . . . . Max Security . | . . . . . . . . . . . . . . . . Squads Dispatched 29 | . 4 . . . 4 . . . . 12 2 . . 2 5 Investigation 11 | . 2 . . . 1 . . . . 4 2 . . . 2 Extermination 7 | . . . . . . . . . . 6 . . . . 1 Reinforcement 10 | . 2 . . . 2 . . . . 2 . . . 2 2 Assault . | . . . . . . . . . . . . . . . . Garrison 1 | . . . . . 1 . . . . . . . . . . Intercept . | . . . . . . . . . . . . . . . . Searches Triggered . | . . . . . . . . . . . . . . . . Construction Impeded 1 | . . . . . . . . . . . . . . . 1 Haulers Reinforced 1 | . . . . . . . . . . 1 . . . . . Active Scanning Responses . | . . . . . . . . . . . . . . . . Cargo Convoy Interrupts . | . . . . . . . . . . . . . . . . Stealth | -11 -10 -10 -10 -9 -8 -8 -8 -8 -8 -6 -5 -4 -3 -3 -2 --------- Run | Jun Mat Min Exi Min Mat Gar Sto Gar Rec Fac Fac Fac Res DSF Res Distress Signals 7 | . 1 . . . 2 . . . . 1 . 1 . . 2 Communications Jammed . | . . . . . . . . . . . . . . . . Distress Signals . | . . . . . . . . . . . . . . . . Times Spotted 201 | . 23 6 . 9 16 16 3 21 10 32 4 4 . 5 52 Peak Tracking Total 19 | . 8 3 . 4 3 3 3 10 4 3 4 4 . 5 19 Tactical Retreats 22 | . . . . 1 . 6 . 3 . 5 . . . 1 6 Traps | -11 -10 -10 -10 -9 -8 -8 -8 -8 -8 -6 -5 -4 -3 -3 -2 ------- Run | Jun Mat Min Exi Min Mat Gar Sto Gar Rec Fac Fac Fac Res DSF Res Traps Triggered 20 | . 2 . . . . 3 . 4 . 6 1 . . . 4 Indirectly . | . . . . . . . . . . . . . . . . Trap Hack Attempts . | . . . . . . . . . . . . . . . . Triggered . | . . . . . . . . . . . . . . . . Disarmed . | . . . . . . . . . . . . . . . . Reprogrammed . | . . . . . . . . . . . . . . . . Reused . | . . . . . . . . . . . . . . . . Traps Extracted . | . . . . . . . . . . . . . . . . Installed . | . . . . . . . . . . . . . . . . Triggered . | . . . . . . . . . . . . . . . . Machines | -11 -10 -10 -10 -9 -8 -8 -8 -8 -8 -6 -5 -4 -3 -3 -2 ---------- Run | Jun Mat Min Exi Min Mat Gar Sto Gar Rec Fac Fac Fac Res DSF Res Machines Disabled 17 | . 10 1 . 3 . 2 . 1 . . . . . . . Max in Single Turn 3 | . 2 1 . 3 . 1 . 1 . . . . . . . Garrison Access 5 | . . . . . . . . . . 3 . 1 1 . . Garrison Relay 2 | . . . . . . 1 . 1 . . . . . . . Machines Repaired . | . . . . . . . . . . . . . . . . Machines Sabotaged . | . . . . . . . . . . . . . . . . Overloaded Fab Kills . | . . . . . . . . . . . . . . . . Hacking | -11 -10 -10 -10 -9 -8 -8 -8 -8 -8 -6 -5 -4 -3 -3 -2 --------- Run | Jun Mat Min Exi Min Mat Gar Sto Gar Rec Fac Fac Fac Res DSF Res Machines Accessed 70 | . 5 1 2 . 6 1 4 . 10 24 1 9 5 . 2 Terminals 40 | . 5 . . . 3 1 3 . 6 11 1 5 3 . 2 Fabricators 7 | . . . . . . . . . . 5 . 1 1 . . Repair Stations 3 | . . . . . 1 . . . . 1 . 1 . . . Recycling Units 7 | . . . . . . . . . 4 2 . 1 . . . Scanalyzers 3 | . . . . . 1 . . . . 2 . . . . . Garrison Access 7 | . . . . . 1 . 1 . . 3 . 1 1 . . Total Hacks 205 | . 24 1 2 . 20 2 17 . 28 69 2 20 15 . 5 Successful 114 | . 8 1 2 . 12 1 11 . 12 39 . 15 13 . . Failed 88 | . 15 . . . 7 1 6 . 16 29 2 5 2 . 5 Catastrophic 14 | . . . . . 2 . 1 . 2 6 1 . . . 2 Database Lockouts 3 | . 1 . . . 1 . . . . 1 . . . . . Manual 110 | . 22 . 1 . 11 . 13 . 14 30 1 12 6 . . Terminals 134 | . 24 . . . 12 2 16 . 16 36 2 12 9 . 5 Fabricators 15 | . . . . . . . . . . 9 . 2 4 . . Repair Stations 9 | . . . . . 4 . . . . 4 . 1 . . . Recycling Units 22 | . . . . . . . . . 12 6 . 4 . . . Scanalyzers 9 | . . . . . 3 . . . . 6 . . . . . Garrison Access 13 | . . . . . 1 . 1 . . 8 . 1 2 . . Terminal Hacks 39 | . 4 1 2 . 4 1 6 . 3 8 . 4 6 . . Record 1 | . . . 1 . . . . . . . . . . . . Part Schematic 7 | . . . . . 1 . 1 . 1 3 . 1 . . . Robot Schematic 7 | . 2 . . . 1 . 1 . 1 . . . 2 . . Robot Analysis 1 | . . . . . . . . . . 1 . . . . . Open Door 1 | . . 1 . . . . . . . . . . . . . Open DSF 1 | . . . . . . . . . . . . . 1 . . Level Access Points 3 | . . . . . . . . . . 1 . 1 1 . . Branch Access Points 2 | . . . . . . . 1 . . . . . 1 . . Emergency Access Points 1 | . . . . . . 1 . . . . . . . . . Machine Index 2 | . . . . . . . . . . 1 . 1 . . . Terminal Index 2 | . . . . . 1 . . . . . . . 1 . . Unreport Threat 4 | . 1 . . . . . 2 . . 1 . . . . . Locate Traps 2 | . . . . . . . 1 . . . . 1 . . . Transport Status 1 | . . . . . . . . . 1 . . . . . . Recall Investigation 1 | . . . . . . . . . . 1 . . . . . Hauler Manifests 1 | . 1 . . . . . . . . . . . . . . Zone Layout 1 | . . . . . 1 . . . . . . . . . . EX-Prototype ID Bank 1 | . . . 1 . . . . . . . . . . . . Fabricator Hacks 14 | . . . . . . . . . . 8 . 2 4 . . Load Schematic 7 | . . . . . . . . . . 4 . 1 2 . . Build 7 | . . . . . . . . . . 4 . 1 2 . . Repair Station Hacks 4 | . . . . . 2 . . . . 1 . 1 . . . Refit 4 | . . . . . 2 . . . . 1 . 1 . . . Recycling Unit Hacks 4 | . . . . . . . . . 2 2 . . . . . Retrieve Components 4 | . . . . . . . . . 2 2 . . . . . Scanalyzer 6 | . . . . . 3 . . . . 3 . . . . . Insert Component 3 | . . . . . 1 . . . . 2 . . . . . Analyze 3 | . . . . . 2 . . . . 1 . . . . . Garrison Access Hacks 11 | . . . . . 1 . 1 . . 6 . 1 2 . . Unlock Access 2 | . . . . . 1 . 1 . . . . . . . . Seal Access 5 | . . . . . . . . . . 3 . 1 1 . . Coupler Status 4 | . . . . . . . . . . 3 . . 1 . . Unauthorized Hacks 36 | . 4 . . . 2 . 4 . 7 11 . 7 1 . . Terminals 24 | . 4 . . . 2 . 4 . 3 7 . 3 1 . . Track 1 | . . . . . . . 1 . . . . . . . . Assimilate 1 | . . . . . . . . . . . . 1 . . . Botnet 17 | . 3 . . . 2 . 2 . 2 5 . 2 1 . . Operators 5 | . 1 . . . . . 1 . 1 2 . . . . . Fabricators . | . . . . . . . . . . . . . . . . Repair Stations 1 | . . . . . . . . . . 1 . . . . . Mechanics 1 | . . . . . . . . . . 1 . . . . . Recycling Units 9 | . . . . . . . . . 4 1 . 4 . . . Monitor 2 | . . . . . . . . . 1 . . 1 . . . Reject 3 | . . . . . . . . . 1 1 . 1 . . . Recyclers 2 | . . . . . . . . . 1 . . 1 . . . Mask 2 | . . . . . . . . . 1 . . 1 . . . Scanalyzers 1 | . . . . . . . . . . 1 . . . . . Extract 1 | . . . . . . . . . . 1 . . . . . Garrison Access 1 | . . . . . . . . . . 1 . . . . . Restock 1 | . . . . . . . . . . 1 . . . . . Data Cores Recovered . | . . . . . . . . . . . . . . . . Used . | . . . . . . . . . . . . . . . . Hacking Detections 43 | . 5 . . . 3 . 2 . 6 17 1 5 2 . 2 Full Trace Events 7 | . . . . . 1 . . . . 3 1 . . . 2 Feedback Events 2 | . . . . . . . . . . 1 . . . . 1 Corruption 1 | . . . . . . . . . . 1 . . . . . Hackware Fried 1 | . . . . . . . . . . . . . . . 1 Feedback Blocked . | . . . . . . . . . . . . . . . . Robot Schematics Acquired 7 | . 2 . . . 1 . 1 . 1 . . . 2 . . Robots Built 6 | . . . . . . . . . . 2 . . 4 . . Authchips 2 | . . . . . . . . . . . . . 2 . . Time 155 | . . . . . . . . . . 67 . . 88 . . Total Robot Build Rating 18 | . . . . . . . . . . 2 . . 16 . . Part Schematics Acquired 23 | . . . . . 2 . 1 . 1 18 . 1 . . . Parts Built 4 | . . . . . . . . . . 2 . 2 . . . Authchips 2 | . . . . . . . . . . 1 . 1 . . . Time 147 | . . . . . . . . . . 89 . 58 . . . Total Part Build Rating 23 | . . . . . . . . . . 9 . 14 . . . Parts Repaired . | . . . . . . . . . . . . . . . . Time . | . . . . . . . . . . . . . . . . Parts Recycled . | . . . . . . . . . . . . . . . . Recycled Matter . | . . . . . . . . . . . . . . . . Retrieved Matter . | . . . . . . . . . . . . . . . . Retrieved Components 21 | . . . . . . . . . 10 11 . . . . . Parts Scanalyzed 3 | . . . . . 1 . . . . 2 . . . . . Part Schematics Acquired 2 | . . . . . 1 . . . . 1 . . . . . Parts Damaged . | . . . . . . . . . . . . . . . . Bothacking | -11 -10 -10 -10 -9 -8 -8 -8 -8 -8 -6 -5 -4 -3 -3 -2 ------------ Run | Jun Mat Min Exi Min Mat Gar Sto Gar Rec Fac Fac Fac Res DSF Res Used RIF Installer 2 | . . . . . . 1 . 1 . . . . . . . Robot Detection 1 | . . . . . . . . 1 . . . . . . . Robots Hacked 20 | . . . . . . . . 2 5 8 . 2 . . 3 Non-combat 15 | . . . . . . . . . 3 7 . 2 . . 3 Combat 5 | . . . . . . . . 2 2 1 . . . . . Robot Hacks Applied 25 | . . . . . . . . 2 5 11 . 3 . . 4 parse_system 2 | . . . . . . . . . . 2 . . . . . no_distress 2 | . . . . . . . . . . 2 . . . . . start_evac 1 | . . . . . . . . . . . . . . . 1 deconstruct_machine 1 | . . . . . . . . . . 1 . . . . . find_fabricator 1 | . . . . . . . . . . 1 . . . . . find_recycling 1 | . . . . . . . . . . 1 . . . . . find_terminals 1 | . . . . . . . . . . . . . . . 1 block_reporting 2 | . . . . . . . . . . . . 1 . . 1 reboot_system 1 | . . . . . . . . . 1 . . . . . . formatsys_low 9 | . . . . . . . . . 3 3 . 2 . . 1 formatsys_high 4 | . . . . . . . . 2 1 1 . . . . . Relay Couplers Released 12 | . . . . . . 4 . 3 . 4 . . 1 . . Machine Destruction 9 | . . . . . . 4 . 3 . 1 . . 1 . . Programmers 3 | . . . . . . . . . . 3 . . . . . Attached 9 | . . . . . . . . 2 2 2 . 1 1 . 1 Fabnet Peak Effective % . | . . . . . . . . . . . . . . . . Robots Rewired 27 | . . . . . . . . 6 21 . . . . . . Allies Hacked 3 | . . . . . . . . . 1 2 . . . . . Hacks Repelled . | . . . . . . . . . . . . . . . . Allies | -11 -10 -10 -10 -9 -8 -8 -8 -8 -8 -6 -5 -4 -3 -3 -2 -------- Run | Jun Mat Min Exi Min Mat Gar Sto Gar Rec Fac Fac Fac Res DSF Res Total Allies 46 | . . . . . . . . 8 25 6 . 2 4 . 1 Largest Group 20 | . . . . . . . . 3 20 20 . 2 6 6 1 Highest-Rated Group 266 | . . . . . . . . 54 266 266 . 49 196 196 26 Highest-Rated Ally 41 | . . . . . . . . 18 27 41 . 26 37 37 26 Total Orders 40 | . . . . . . . . . 12 15 . 6 5 . 2 STAY 22 | . . . . . . . . . 6 10 . 2 4 . . FOLLOW 9 | . . . . . . . . . 2 3 . 3 1 . . AID 3 | . . . . . . . . . . 2 . 1 . . . PICKUP 3 | . . . . . . . . . 3 . . . . . . COLLECT 1 | . . . . . . . . . 1 . . . . . . EXPLORE 2 | . . . . . . . . . . . . . . . 2 Ally Attacks 95 | . . . . . . . . 19 36 36 . . . 4 . Total Damage 2136 | . . . . . . . . 288 800 966 . . . 82 . Kills 26 | . . . . . . . . 4 12 10 . . . . . Allies Corrupted . | . . . . . . . . . . . . . . . . Allies Melted . | . . . . . . . . . . . . . . . . Intel | -11 -10 -10 -10 -9 -8 -8 -8 -8 -8 -6 -5 -4 -3 -3 -2 ------- Run | Jun Mat Min Exi Min Mat Gar Sto Gar Rec Fac Fac Fac Res DSF Res Robot Analysis Total 1 | . . . . . . . . . . 1 . . . . . Derelict Logs Recovered . | . . . . . . . . . . . . . . . . Drone Launches 3 | . . . . . . . . . . . . . . . 3 Drone Recoveries 2 | . . . . . . . . . . . . . . . 2 Exploration | -11 -10 -10 -10 -9 -8 -8 -8 -8 -8 -6 -5 -4 -3 -3 -2 ------------- Run | Jun Mat Min Exi Min Mat Gar Sto Gar Rec Fac Fac Fac Res DSF Res Turns Passed 12537 | 61 525 380 366 262 1252 1021 216 1167 1324 4271 131 637 278 47 599 Spaces Moved 9181 | 44 349 287 304 182 573 816 86 473 770 3343 179 665 335 59 716 Core 111 | 3 . . . . 1 1 . . . . . . . . 106 Treads . | . . . . . . . . . . . . . . . . Legs 3373 | 21 349 287 304 182 206 191 86 473 770 504 . . . . . Wheels 269 | 20 . . . . 63 186 . . . . . . . . . Hover 4968 | . . . . . 303 13 . . . 2839 179 665 335 59 575 Flight 460 | . . . . . . 425 . . . . . . . . 35 Fastest Speed 37 | 50 120 120 120 120 76 37 120 120 120 60 60 46 52 56 39 Average Speed 99 | 106 120 120 120 120 128 72 188 167 142 96 63 61 56 56 55 Slowest Speed 400 | 120 120 120 120 120 400 200 260 270 190 260 110 111 110 56 350 Overloaded Moves . | . . . . . . . . . . . . . . . . Propulsion Burnouts . | . . . . . . . . . . . . . . . . Robots Hopped 4 | . . . . . . . . . . . . . . . 4 Cave-ins Triggered 1 | . . . . . . . 1 . . . . . . . . Exploration Rate (%) 44 | 4 85 71 71 50 33 63 18 38 95 60 5 19 5 71 22 Regions Visited 15 Branch Regions 5 Pre-discovered Areas 2 | . . . 1 1 . . . . . . . . . . . Known Exits Taken 5 | . . . . . 1 . 1 . . 1 . 1 1 . . Unknown Exits Taken 7 | 1 1 1 1 1 . . . . 1 . 1 . . . . Scrap Searched . | . . . . . . . . . . . . . . . . Spaces Dug 89 | . 6 10 . 10 10 3 3 . . 35 2 5 . . 5 Terrain Destroyed 345 | . 119 74 . 22 31 6 4 . . 35 2 5 . 42 5 Melee 63 | . . . . . 10 3 3 . . 35 2 5 . . 5 Projectile 25 | . . . . . 21 3 1 . . . . . . . . AOE 257 | . 119 74 . 22 . . . . . . . . . 42 . Terrain Rammed . | . . . . . . . . . . . . . . . . Walls Destroyed . | . . . . . . . . . . . . . . . . Machines Disabled . | . . . . . . . . . . . . . . . . Actions | -11 -10 -10 -10 -9 -8 -8 -8 -8 -8 -6 -5 -4 -3 -3 -2 --------- Run | Jun Mat Min Exi Min Mat Gar Sto Gar Rec Fac Fac Fac Res DSF Res Total 12003 | 54 407 313 306 199 982 1187 124 749 980 4229 193 890 422 68 900 Wait 1817 | . 11 15 . 1 306 277 25 93 112 598 11 181 78 3 106 Move 9158 | 43 348 286 303 181 573 814 86 471 769 3342 178 664 334 58 708 Hop 4 | . . . . . . . . . . . . . . . 4 Pick Up 68 | 3 5 . 1 . 6 6 . 11 5 11 . 7 1 . 12 Fast Attach 70 | 6 . . . . 13 8 . 4 1 23 . 5 2 1 7 Attach 89 | . . . . 2 3 5 3 7 4 43 1 4 2 1 14 Detach 57 | . . . . . 3 8 . 1 . 39 . 3 1 1 1 Swap 34 | 2 1 1 . . 8 1 3 8 2 6 . 2 . . . Drop 87 | . . 1 2 . 15 6 . 7 6 25 . 14 3 . 8 Fire 230 | . 42 10 . 15 39 16 4 19 36 32 . 3 . 4 10 Melee 203 | . . . . . 16 20 3 39 1 108 2 5 1 . 8 Ram 8 | . . . . . . . . . . . 1 . . . 7 Kick . | . . . . . . . . . . . . . . . . Crush . | . . . . . . . . . . . . . . . . Escape Stasis 66 | . . . . . . 26 . 25 . . . . . . 15 Rewire 112 | . . . . . . . . 64 44 2 . 2 . . . Trap . | . . . . . . . . . . . . . . . . Miscellaneous . | . . . . . . . . . . . . . . . . Route ------- -11/Junkyard -10/Materials (discovered 4 exits: [*Mat x2] / *Min x2) -10/Mines (discovered 3 exits: [*Mat x2] / *Exi) -10/Exiles -9/Mines -8/Materials (discovered 3 exits: [*Fac] / *Sto / Gar) -8/Garrison (discovered 3 exits: *Sto x3) -8/Storage (discovered 2 exits: Rec / Gar) -8/Garrison -8/Recycling -6/Factory (discovered 5 exits: *Fac x4 / [*Low]) -5/Factory -4/Factory (discovered 4 exits: *Res x4) -3/Research (discovered 6 exits: Res x3 / Qua x2 / DSF) -3/DSF -2/Research History --------- Turn | Location | Event 12 | -11/Junkyard | Discovered new exit (range 15) 62 | -11/Junkyard | Entered Materials 125 | -10/Materials | Discovered new exit (range 6) 284 | -10/Materials | Discovered new exit (range 16) 302 | -10/Materials | Build established: Mutant 334 | -10/Materials | Central database locked down 365 | -10/Materials | Discovered new exit (range 9) 529 | -10/Materials | Discovered new exit (range 11) 587 | -10/Materials | Entered Mines 616 | -10/Mines | Met a Derelict bent on vengeance 749 | -10/Mines | Met a Derelict who couldn't figure out how to use a Trap Extractor 814 | -10/Mines | Found a hidden stash of uninstalled traps 919 | -10/Mines | Discovered new exit (range 5) 943 | -10/Mines | Discovered new exit (range 5) 961 | -10/Mines | Deemed a non-threat by the Exiles lab entrance 962 | -10/Mines | Discovered new exit (range 5) 967 | -10/Mines | Entered Exiles 1001 | -10/Exiles | Met 8R-AWN 1017 | -10/Exiles | Met EX-HEX 1083 | -10/Exiles | Met EX-DEC 1105 | -10/Exiles | Learned location of Zion (-7) 1138 | -10/Exiles | Met EX-BIN 1152 | -10/Exiles | Aligned with FarCom system 1153 | -10/Exiles | Given EX-Vault access code 1183 | -10/Exiles | Opened EX-Vault 1193 | -10/Exiles | Found AWS/Gauss 1219 | -10/Exiles | Warned to stay clear of 0b10 Research branches 1317 | -10/Exiles | Discovered new exit (range 14) 1333 | -10/Exiles | Left Exiles lab with AWS/Gauss 1333 | -10/Exiles | Entered Mines 1372 | -9/Mines | Learned location of Storage (-8) 1453 | -9/Mines | Core integrity fell below 50% 1584 | -9/Mines | Discovered new exit (range 8) 1595 | -9/Mines | Entered Materials 1595 | -8/Materials | Evolved 4 slots: Utility x4 1654 | -8/Materials | Discovered new exit (range 8) 2122 | -8/Materials | Central database locked down 2409 | -8/Materials | Build established: Hacker-Mutant 2714 | -8/Materials | Discovered new exit (range 14) 2737 | -8/Materials | Build established: Scavenger-Mutant 2803 | -8/Materials | Garrison activated, responded to threat 2847 | -8/Materials | Identified exit to Garrison 2847 | -8/Materials | Entered Garrison 2932 | -8/Garrison | Triggered checkpoint 3224 | -8/Garrison | Triggered checkpoint 3317 | -8/Garrison | Lost 3 parts (2n1u) 3365 | -8/Garrison | Discovered new exit (range 9) 3460 | -8/Garrison | Triggered checkpoint 3553 | -8/Garrison | Discovered new exit (range 15) 3564 | -8/Garrison | Build established: Mutant 3712 | -8/Garrison | Discovered new exit (range 11) 3756 | -8/Garrison | Installed Relay Interface Framework 3812 | -8/Garrison | Garrison Relay disabled 3868 | -8/Garrison | Entered Storage 3957 | -8/Storage | Identified exit to Recycling 4072 | -8/Storage | Crushed by falling debris 4084 | -8/Storage | Identified exit to Garrison 4084 | -8/Storage | Entered Garrison 4096 | -8/Garrison | Triggered checkpoint 4103 | -8/Garrison | Lost 3 parts (1p1u1w) 4172 | -8/Garrison | Triggered checkpoint 4312 | -8/Garrison | Garrison Relay disabled 4410 | -8/Garrison | Triggered checkpoint 4573 | -8/Garrison | Build established: Bothacker-Mutant 4586 | -8/Garrison | Core integrity fell below 50% 4710 | -8/Garrison | Destroyed 8 combat bots 5088 | -8/Garrison | Triggered checkpoint 5100 | -8/Garrison | Triggered checkpoint 5143 | -8/Garrison | Expanded RIF knowledge: Robot Detection 5208 | -8/Garrison | Triggered checkpoint 5208 | -8/Garrison | Discovered exit to Recycling (range 14) 5251 | -8/Garrison | Entered Recycling 5251 | -8/Recycling | Accompanied by 3 allies 5558 | -8/Recycling | Build established: Commander-Mutant 5785 | -8/Recycling | Core integrity fell below 20% 6123 | -8/Recycling | Discovered new exit (range 14) 6564 | -8/Recycling | System corruption reached 10% 6575 | -8/Recycling | Entered Factory 6575 | -6/Factory | Accompanied by 20 allies 6575 | -6/Factory | Evolved 4 slots: Utility x4 6674 | -6/Factory | Fabricated Hacking Suite (x1) 6979 | -6/Factory | Discovered new exit (range 16) 7359 | -6/Factory | Lost 3 parts (1p2n) 7558 | -6/Factory | Lost 3 parts (3u) 7643 | -6/Factory | Discovered new exit (range 16) 7958 | -6/Factory | Identified exit to Factory 8842 | -6/Factory | Build established: Hacker-Mutant 8933 | -6/Factory | Central database locked down 9352 | -6/Factory | Core integrity fell below 50% 9928 | -6/Factory | Build established: Bothacker-Assassin 9960 | -6/Factory | Fabricated O-16 Technician? 9996 | -6/Factory | Fabricated Disruptor Cannon? 10474 | -6/Factory | Fabricated O-16 Technician (x1) 10477 | -6/Factory | Build established: Mutant 10846 | -6/Factory | Entered another Factory area 10846 | -5/Factory | Evolved 2 slots: Utility x2 10955 | -5/Factory | Discovered new exit (range 15) 10977 | -5/Factory | Entered another Factory area 10977 | -4/Factory | Evolved 2 slots: Power x1, Propulsion x1 11061 | -4/Factory | Build established: Hacker-Mutant 11062 | -4/Factory | Fabricated Imp. Antigrav System (x2) 11467 | -4/Factory | Identified exit to Research 11614 | -4/Factory | Entered Research 11614 | -3/Research | Accompanied by 2 allies 11614 | -3/Research | Evolved 2 slots: Propulsion x1, Utility x1 11658 | -3/Research | Identified exit to Research 11723 | -3/Research | Identified exit to Quarantine 11773 | -3/Research | Identified exit to DSF 11788 | -3/Research | Fabricated P-60 Hacker? 11833 | -3/Research | Build established: Hacker-Scout 11850 | -3/Research | Fabricated P-60 Hacker? 11892 | -3/Research | Entered DSF 11892 | -3/DSF | Accompanied by 6 allies 11917 | -3/DSF | Additional patrols routed to DSF 11931 | -3/DSF | Discovered exit to Research (range 12) 11939 | -3/DSF | Entered Research 11939 | -2/Research | Evolved 2 slots: Utility x2 11951 | -2/Research | Lost 4 parts (3u1w) 12144 | -2/Research | Hacking Suite fried by hacking feedback 12309 | -2/Research | Spotted B-90 Cyclops 12408 | -2/Research | Lost 8 parts (1p1n4u2w) 12485 | -2/Research | Core integrity fell below 50% 12518 | -2/Research | Lost 10 parts (1p7n2u) 12529 | -2/Research | System corruption reached 10% 12534 | -2/Research | Core integrity fell below 20% 12538 | -2/Research | Destroyed by G-73 Enforcer with Heavy Laser Last Messages --------------- 12489_ ALERT: Suspicious activity at Terminal R002. Dispatching Investigation squad. 12494_ O-24 Administrator: "IFF HANDSHAKE FAILED. SECURING TERMINAL." 12507_ Slammed into K-01 Serf. 12516_ Acquired Unknown Energy Cannon. 12516_ Identified Com. HERF Cannon. 12522_ Dropped Com. HERF Cannon. 12526_ Slammed into P-80 Master. 12528_ P-80 Master resets P-80 Master, system corruption cleaned. 12528_ Slammed into P-80 Master. 12534_ Imp. System Shield destroyed. 12536_ Slammed into P-80 Master. 12537_ System corrupted: Heat flow error (+127). 12537_ Slammed into G-73 Enforcer. 12537_ Slug penetrates Wall. 12537_ Penetrated by Slug. 12538_ Slug penetrates P-80 Master. 12538_ Slammed into H-88 Terminator. 12538_ Destabilizing: System interference. 12538_ Adv. Terrain Scan Processor temporarily disabled. Map ----- +----------------------------------------------------+ | | | | | | | | | | | | | | | | | | | | | | | | | | | | | | | | | | | | | | | | | | | ##########???????????????????????????????????????? | | # #######???????????????????????####??????? | | # ! # #????#####????????????? #??????? | | # # ###### h ############## #??????? | | # + pp p pg@hpgg R #???#### | | # * # ###### p###gh g # #?? | | # ]! # #????#####?# # #?? | | # ] #######??????????# g ######? | | # #????????????????###### +? | | # #?????????????????????# gg # | | ##########?????????????????????# # | | ???????????????????????????????+ + """ | | ???????????????????????????????# g # """ | | ???????????????????????????????#######g # """ | | ?????????????????????????????????????# #?###### | | ?????????????????????????????????????# ### | | ?????????????????????????????????????# | | ?????????????????????????????????????# | | ?????????????????????????????????????+ | | ?????????????????????????????????????# """ """ | | ?????????????????????????????????????# "T """ | | ?????????????????????????????????????# """ "" | | ?????????????????????????????????????# | | ?????????????????????????????????????# | | ?????????????????????????????????????# | | ?????????????????????????????????????# | | ?????????????????????????????????????# ######## | | ?????????????????????????????????????# #??????? | | ???????????????????????####+########## #??????? | +----------------------------------------------------+ Best States ------------- Heat Dissipation 59 Energy Generation 17 Energy Capacity 265 Matter Stores 300 Matter Capacity 300 Sight Range 16 Terrain Scan Range 24 Terrain Scan Density 310 Armor Coverage 150 Phase Shifting 15 Evasion (%) 68 Targeting Accuracy 6 Melee Accuracy 10 Offensive Hacking 22 Defensive Hacking 12 Relay Coupler Types 3 Relay Coupler Value 53 Authchip Count 4 Item Schematics ----------------- Hacking Suite | -8/Materials | Hacked Aerolev Unit | -8/Materials | Scanalyzed System Shield | -8/Storage | Hacked Imp. Cooling System | -8/Recycling | Hacked System Restoration Module | -6/Factory | Hacked Imp. System Restoration Module | -6/Factory | Hacked Imp. Antigrav System | -6/Factory | Hacked Cmb. Airjet | -6/Factory | Scanalyzed Hvy. Missile Launcher | -6/Factory | Extracted Imp. VSS Leg | -6/Factory | Extracted Adv. Weight Redist. System | -6/Factory | Extracted Shock Absorption System | -6/Factory | Extracted Com. Wheel | -6/Factory | Extracted Xenon Bombardment Thruster | -6/Factory | Extracted Energy Filter | -6/Factory | Extracted Hvy. Machine Gun | -6/Factory | Extracted Imp. Reaction Control System | -6/Factory | Extracted Imp. Sensor Array | -6/Factory | Extracted Imp. Trap Scanner | -6/Factory | Extracted Imp. Medium Armor Plating | -6/Factory | Extracted Med. Storage Unit | -6/Factory | Extracted Lgt. Deuterium Engine | -6/Factory | Extracted Adv. Transmission Jammer | -4/Factory | Hacked Robot Schematics ------------------ O-16 Technician | -10/Materials | Hacked R-06 Scavenger | -10/Materials | Hacked I-25 Savior | -8/Materials | Hacked T-07 Excavator | -8/Storage | Hacked M-28 Smith | -8/Recycling | Hacked P-60 Hacker | -3/Research | Hacked G-67 Veteran | -3/Research | Hacked Fabricated ------------ Hacking Suite | x1 | -6/Factory | Authchip O-16 Technician | x1 | -6/Factory Disruptor Cannon | x1 | -6/Factory | Preloaded O-16 Technician | x1 | -6/Factory Imp. Antigrav System | x2 | -4/Factory | Authchip P-60 Hacker | x2 | -3/Research | Authchip P-60 Hacker | x2 | -3/Research | Authchip Alien Tech Used ----------------- None Achievements -------------- None Challenges ------------ None Game ------ Seed TiamatHeatMallet Manual? 0 Play Time 02:58:29 Cumulative 293.0 hours Start 2023.09.13 @ 10:25:30 End 2023.09.13 @ 13:30:24 Sessions 1 Manual Loads 0 Difficulty Rogue Special Mode None Game No. 198 Rogue 195 Adventurer 3 Explorer 0 Win Type - Total 5 Types 4/0/1/0/0/0/0/0/0 Lore% 71 Gallery% 75 Achievement% 64 Wizard Run 0 Options --------- ASCII 0 Keyboard 0 Movement Numpad Keybinds 0 Fullscreen 1 Font 18/SmallcapsGlow Map View 76x50 Tactical HUD 1 Map Filters NONE Filters NONE Steam 1 RUN: a09d7daa-c701-4b95-92e7-657f3e5ab860